[Event "November 21 Early 2023"]
[Site "https://www.chess.com"]
[Date "2023.11.21"]
[Round "6"]
[White "Mirzanurov, Bulat"]
[Black "Csonka, Balazs"]
[Result "0-1"]
[Board "97"]
[TimeControl "180+1"]
[WhiteFideId "4184521"]
[BlackFideId "742910"]
[WhiteElo "2005"]
[BlackElo "2399"]
[WhiteTeam "RUS"]
[BlackTeam "HUN"]
[WhiteClock "0:00:05"]
[BlackClock "0:00:46"]

1. e4 {[%clk 0:03:00]}  e5 {[%clk 0:02:59]} 2. Nf3 {[%clk 0:03:00]}  Nc6 {[%clk 0:03:00]} 3. Bb5 {[%clk 0:03:00]}  a6 {[%clk 0:02:57]} 4. Ba4 {[%clk 0:02:59]}  Nf6 {[%clk 0:02:57]} 5. O-O {[%clk 0:02:55]}  Be7 {[%clk 0:02:54]} 6. Re1 {[%clk 0:02:54]}  b5 {[%clk 0:02:53]} 7. Bb3 {[%clk 0:02:53]}  O-O {[%clk 0:02:54]} 8. h3 {[%clk 0:02:50]}  d6 {[%clk 0:02:49]} 9. c3 {[%clk 0:02:50]}  Nb8 {[%clk 0:02:43]} 10. d4 {[%clk 0:02:47]}  Nbd7 {[%clk 0:02:43]} 11. Nbd2 {[%clk 0:02:41]}  Bb7 {[%clk 0:02:43]} 12. Bc2 {[%clk 0:02:40]}  Re8 {[%clk 0:02:43]} 13. Nf1 {[%clk 0:02:38]}  Bf8 {[%clk 0:02:41]} 14. Ng3 {[%clk 0:02:38]}  g6 {[%clk 0:02:40]} 15. h4 {[%clk 0:02:34]}  Bg7 {[%clk 0:02:04]} 16. h5 {[%clk 0:02:26]}  d5 {[%clk 0:02:03]} 17. hxg6 {[%clk 0:02:17]}  hxg6 {[%clk 0:02:04]} 18. dxe5 {[%clk 0:02:16]}  Nxe4 {[%clk 0:01:58]} 19. Nxe4 {[%clk 0:02:13]}  dxe4 {[%clk 0:01:57]} 20. Bxe4 {[%clk 0:02:13]}  Bxe4 {[%clk 0:01:57]} 21. Rxe4 {[%clk 0:02:12]}  Nxe5 {[%clk 0:01:56]} 22. Qxd8 {[%clk 0:02:08]}  Raxd8 {[%clk 0:01:49]} 23. Bf4 {[%clk 0:01:58]}  Nd3 {[%clk 0:01:32]} 24. Rxe8+ {[%clk 0:01:51]}  Rxe8 {[%clk 0:01:33]} 25. Bxc7 {[%clk 0:01:49]}  Nxb2 {[%clk 0:01:33]} 26. Bf4 {[%clk 0:00:56]}  b4 {[%clk 0:01:04]} 27. Re1 {[%clk 0:00:34]}  Rxe1+ {[%clk 0:01:02]} 28. Nxe1 {[%clk 0:00:35]}  Bxc3 {[%clk 0:01:00]} 29. Nc2 {[%clk 0:00:35]}  a5 {[%clk 0:00:48]} 30. Bc7 {[%clk 0:00:29]}  Nc4 {[%clk 0:00:48]} 31. Kf1 {[%clk 0:00:26]}  a4 {[%clk 0:00:45]} 32. Ke2 {[%clk 0:00:09]}  b3 {[%clk 0:00:45]} 33. axb3 {[%clk 0:00:05]}  axb3 {[%clk 0:00:46]} 0-1

[Event "November 21 Early 2023"]
[Site "https://www.chess.com"]
[Date "2023.11.21"]
[Round "6"]
[White "Ferreira, Vitor Hugo Vieira"]
[Black "Jakubowski, Krzysztof"]
[Result "1-0"]
[Board "98"]
[TimeControl "180+1"]
[WhiteFideId "2119765"]
[BlackFideId "1112848"]
[WhiteElo "2123"]
[BlackElo "2369"]
[WhiteTeam "BRA"]
[BlackTeam "POL"]
[WhiteClock "0:01:20"]
[BlackClock "0:00:24"]

1. d4 {[%clk 0:03:00]}  Nf6 {[%clk 0:02:57]} 2. c4 {[%clk 0:02:54]}  e6 {[%clk 0:02:55]} 3. Nf3 {[%clk 0:02:53]}  c5 {[%clk 0:02:51]} 4. d5 {[%clk 0:02:53]}  exd5 {[%clk 0:02:51]} 5. cxd5 {[%clk 0:02:53]}  d6 {[%clk 0:02:51]} 6. Nc3 {[%clk 0:02:53]}  g6 {[%clk 0:02:51]} 7. e4 {[%clk 0:02:53]}  Bg7 {[%clk 0:02:50]} 8. Be2 {[%clk 0:02:52]}  O-O {[%clk 0:02:49]} 9. Nd2 {[%clk 0:02:53]}  a6 {[%clk 0:02:47]} 10. a4 {[%clk 0:02:52]}  Re8 {[%clk 0:02:46]} 11. O-O {[%clk 0:02:52]}  Nbd7 {[%clk 0:02:46]} 12. Qc2 {[%clk 0:02:45]}  Nh5 {[%clk 0:02:44]} 13. Bxh5 {[%clk 0:02:37]}  gxh5 {[%clk 0:02:44]} 14. Nc4 {[%clk 0:02:36]}  Ne5 {[%clk 0:02:37]} 15. Nxe5 {[%clk 0:02:35]}  Bxe5 {[%clk 0:02:36]} 16. f4 {[%clk 0:02:36]}  Bd4+ {[%clk 0:02:33]} 17. Kh1 {[%clk 0:02:35]}  h4 {[%clk 0:02:22]} 18. h3 {[%clk 0:02:34]}  Kh8 {[%clk 0:02:20]} 19. Bd2 {[%clk 0:02:34]}  Rg8 {[%clk 0:02:20]} 20. Ne2 {[%clk 0:02:30]}  Bf6 {[%clk 0:01:56]} 21. Bc3 {[%clk 0:02:29]}  Bd7 {[%clk 0:01:56]} 22. Bxf6+ {[%clk 0:02:28]}  Qxf6 {[%clk 0:01:56]} 23. Qc3 {[%clk 0:02:29]}  Qxc3 {[%clk 0:01:56]} 24. Nxc3 {[%clk 0:02:27]}  Rg3 {[%clk 0:01:54]} 25. Rf2 {[%clk 0:02:21]}  Rag8 {[%clk 0:01:50]} 26. Re1 {[%clk 0:02:21]}  f6 {[%clk 0:01:42]} 27. e5 {[%clk 0:02:20]}  fxe5 {[%clk 0:01:40]} 28. fxe5 {[%clk 0:02:21]}  dxe5 {[%clk 0:01:40]} 29. Rxe5 {[%clk 0:02:22]}  b5 {[%clk 0:01:16]} 30. axb5 {[%clk 0:02:22]}  axb5 {[%clk 0:01:17]} 31. Ne4 {[%clk 0:02:20]}  Re3 {[%clk 0:01:15]} 32. Nd6 {[%clk 0:02:05]}  Rxe5 {[%clk 0:01:12]} 33. Nf7+ {[%clk 0:02:06]}  Kg7 {[%clk 0:01:12]} 34. Nxe5 {[%clk 0:02:06]}  Be8 {[%clk 0:01:05]} 35. d6 {[%clk 0:02:07]}  Bh5 {[%clk 0:01:00]} 36. d7 {[%clk 0:02:03]}  Rd8 {[%clk 0:00:58]} 37. Rd2 {[%clk 0:02:03]}  Be8 {[%clk 0:00:55]} 38. dxe8=Q {[%clk 0:02:01]}  Rxe8 {[%clk 0:00:56]} 39. Nf3 {[%clk 0:01:59]}  c4 {[%clk 0:00:54]} 40. Nxh4 {[%clk 0:01:59]}  Kf6 {[%clk 0:00:54]} 41. Nf3 {[%clk 0:01:58]}  Re3 {[%clk 0:00:53]} 42. Nd4 {[%clk 0:01:53]}  b4 {[%clk 0:00:52]} 43. Nc6 {[%clk 0:01:50]}  c3 {[%clk 0:00:43]} 44. bxc3 {[%clk 0:01:50]}  bxc3 {[%clk 0:00:44]} 45. Rc2 {[%clk 0:01:50]}  Kf5 {[%clk 0:00:43]} 46. Nd4+ {[%clk 0:01:48]}  Ke4 {[%clk 0:00:42]} 47. Nb5 {[%clk 0:01:48]}  Re1+ {[%clk 0:00:27]} 48. Kh2 {[%clk 0:01:48]}  h5 {[%clk 0:00:27]} 49. Rxc3 {[%clk 0:01:42]}  Rb1 {[%clk 0:00:26]} 50. Nd6+ {[%clk 0:01:41]}  Kf4 {[%clk 0:00:25]} 51. Rf3+ {[%clk 0:01:40]}  Kg5 {[%clk 0:00:24]} 52. Ne4+ {[%clk 0:01:40]}  Kg6 {[%clk 0:00:25]} 53. h4 {[%clk 0:01:40]}  Kg7 {[%clk 0:00:25]} 54. Rf5 {[%clk 0:01:37]}  Kg6 {[%clk 0:00:26]} 55. Ng3 {[%clk 0:01:36]}  Rb4 {[%clk 0:00:24]} 56. Rg5+ {[%clk 0:01:35]}  Kf6 {[%clk 0:00:24]} 57. Rxh5 {[%clk 0:01:36]}  Kg6 {[%clk 0:00:25]} 58. Rg5+ {[%clk 0:01:36]}  Kf6 {[%clk 0:00:25]} 59. Kh3 {[%clk 0:01:35]}  Rb2 {[%clk 0:00:25]} 60. Rg4 {[%clk 0:01:34]}  Rb1 {[%clk 0:00:25]} 61. Ne4+ {[%clk 0:01:34]}  Kf5 {[%clk 0:00:24]} 62. Nf2 {[%clk 0:01:29]}  Ke6 {[%clk 0:00:25]} 63. Rf4 {[%clk 0:01:29]}  Rb5 {[%clk 0:00:21]} 64. g4 {[%clk 0:01:26]}  Rb3+ {[%clk 0:00:21]} 65. Kg2 {[%clk 0:01:27]}  Rb1 {[%clk 0:00:21]} 66. g5 {[%clk 0:01:27]}  Ke5 {[%clk 0:00:22]} 67. Rf3 {[%clk 0:01:23]}  Rb4 {[%clk 0:00:21]} 68. Kg3 {[%clk 0:01:23]}  Rb6 {[%clk 0:00:21]} 69. h5 {[%clk 0:01:22]}  Rb8 {[%clk 0:00:21]} 70. Kg4 {[%clk 0:01:22]}  Rg8 {[%clk 0:00:22]} 71. g6 {[%clk 0:01:22]}  Ke6 {[%clk 0:00:23]} 72. Kg5 {[%clk 0:01:22]}  Ke5 {[%clk 0:00:24]} 73. Ng4+ {[%clk 0:01:22]}  Ke6 {[%clk 0:00:24]} 74. Re3+ {[%clk 0:01:20]}  Kd5 {[%clk 0:00:24]} 75. h6 {[%clk 0:01:21]}  Ra8 {[%clk 0:00:25]} 76. g7 {[%clk 0:01:20]}  Kd4 {[%clk 0:00:24]} 77. Re7 {[%clk 0:01:20]} 1-0

[Event "November 21 Early 2023"]
[Site "https://www.chess.com"]
[Date "2023.11.21"]
[Round "6"]
[White "Silva Lucena, Cristian"]
[Black "MKlose11"]
[Result "0-1"]
[Board "99"]
[TimeControl "180+1"]
[WhiteFideId "2232588"]
[WhiteElo "2248"]
[BlackElo "2654"]
[WhiteTeam "ESP"]
[WhiteClock "0:00:00"]
[BlackClock "0:00:04"]

1. e4 {[%clk 0:02:58]}  Nf6 {[%clk 0:03:00]} 2. e5 {[%clk 0:02:58]}  Ng8 {[%clk 0:02:43]} 3. Nf3 {[%clk 0:02:55]}  d6 {[%clk 0:02:44]} 4. d4 {[%clk 0:02:49]}  Bg4 {[%clk 0:02:42]} 5. Bc4 {[%clk 0:02:41]}  e6 {[%clk 0:02:36]} 6. h3 {[%clk 0:02:37]}  Bh5 {[%clk 0:02:35]} 7. exd6 {[%clk 0:02:02]}  Bxd6 {[%clk 0:02:23]} 8. Nbd2 {[%clk 0:02:02]}  Nf6 {[%clk 0:02:21]} 9. O-O {[%clk 0:02:01]}  O-O {[%clk 0:02:19]} 10. c3 {[%clk 0:02:01]}  c5 {[%clk 0:02:18]} 11. Be2 {[%clk 0:01:56]}  Nc6 {[%clk 0:02:14]} 12. dxc5 {[%clk 0:01:54]}  Bxc5 {[%clk 0:02:12]} 13. Nb3 {[%clk 0:01:54]}  Bb6 {[%clk 0:02:11]} 14. Qxd8 {[%clk 0:01:46]}  Rfxd8 {[%clk 0:02:08]} 15. Bg5 {[%clk 0:01:46]}  h6 {[%clk 0:02:02]} 16. Bxf6 {[%clk 0:01:45]}  gxf6 {[%clk 0:02:02]} 17. Rfd1 {[%clk 0:01:44]}  a5 {[%clk 0:01:51]} 18. a4 {[%clk 0:01:38]}  Bg6 {[%clk 0:01:50]} 19. Rxd8+ {[%clk 0:01:31]}  Rxd8 {[%clk 0:01:46]} 20. Bb5 {[%clk 0:01:22]}  Ne5 {[%clk 0:01:36]} 21. Nbd2 {[%clk 0:01:16]}  Nd3 {[%clk 0:01:24]} 22. Bxd3 {[%clk 0:01:11]}  Bxd3 {[%clk 0:01:25]} 23. b4 {[%clk 0:01:00]}  Kf8 {[%clk 0:01:20]} 24. Ra2 {[%clk 0:00:45]}  Rd7 {[%clk 0:01:16]} 25. Rb2 {[%clk 0:00:45]}  e5 {[%clk 0:01:09]} 26. Nb3 {[%clk 0:00:44]}  axb4 {[%clk 0:01:02]} 27. cxb4 {[%clk 0:00:45]}  e4 {[%clk 0:00:58]} 28. Nh4 {[%clk 0:00:42]}  e3 {[%clk 0:00:56]} 29. fxe3 {[%clk 0:00:40]}  Bxe3+ {[%clk 0:00:57]} 30. Kh2 {[%clk 0:00:40]}  Bc4 {[%clk 0:00:53]} 31. Nc5 {[%clk 0:00:32]}  Rc7 {[%clk 0:00:31]} 32. Nf5 {[%clk 0:00:26]}  Bf4+ {[%clk 0:00:31]} 33. g3 {[%clk 0:00:26]}  Be5 {[%clk 0:00:31]} 34. Rc2 {[%clk 0:00:23]}  Bd3 {[%clk 0:00:26]} 35. Rf2 {[%clk 0:00:18]}  Bb1 {[%clk 0:00:18]} 36. Nxh6 {[%clk 0:00:11]}  b6 {[%clk 0:00:18]} 37. Na6 {[%clk 0:00:09]}  Rc3 {[%clk 0:00:16]} 38. Nf5 {[%clk 0:00:07]}  Ra3 {[%clk 0:00:10]} 39. a5 {[%clk 0:00:04]}  bxa5 {[%clk 0:00:09]} 40. b5 {[%clk 0:00:04]}  Rb3 {[%clk 0:00:08]} 41. Nc5 {[%clk 0:00:04]}  Rxb5 {[%clk 0:00:06]} 42. Nd7+ {[%clk 0:00:05]}  Kg8 {[%clk 0:00:05]} 43. Nh6+ {[%clk 0:00:02]}  Kg7 {[%clk 0:00:03]} 44. Nf5+ {[%clk 0:00:03]}  Bxf5 {[%clk 0:00:03]} 45. Rxf5 {[%clk 0:00:04]}  Bxg3+ {[%clk 0:00:03]} 46. Kxg3 {[%clk 0:00:00]}  Rxf5 {[%clk 0:00:04]} 0-1

[Event "November 21 Early 2023"]
[Site "https://www.chess.com"]
[Date "2023.11.21"]
[Round "6"]
[White "Spata, German"]
[Black "Grossboss19"]
[Result "0-1"]
[Board "100"]
[TimeControl "180+1"]
[WhiteFideId "113026"]
[WhiteElo "2260"]
[BlackElo "2503"]
[WhiteTeam "ARG"]
[WhiteClock "0:00:00"]
[BlackClock "0:00:06"]

1. e4 {[%clk 0:02:58]}  c6 {[%clk 0:02:56]} 2. d3 {[%clk 0:02:57]}  d5 {[%clk 0:02:56]} 3. Nd2 {[%clk 0:02:56]}  g6 {[%clk 0:02:55]} 4. g3 {[%clk 0:02:48]}  Bg7 {[%clk 0:02:55]} 5. Bg2 {[%clk 0:02:48]}  e5 {[%clk 0:02:55]} 6. Ngf3 {[%clk 0:02:44]}  Ne7 {[%clk 0:02:55]} 7. O-O {[%clk 0:02:42]}  O-O {[%clk 0:02:54]} 8. Re1 {[%clk 0:02:43]}  Re8 {[%clk 0:02:52]} 9. exd5 {[%clk 0:02:39]}  Nxd5 {[%clk 0:02:50]} 10. Nc4 {[%clk 0:02:39]}  Qc7 {[%clk 0:02:50]} 11. c3 {[%clk 0:02:18]}  Nd7 {[%clk 0:02:42]} 12. d4 {[%clk 0:02:14]}  e4 {[%clk 0:02:36]} 13. Ng5 {[%clk 0:02:14]}  f5 {[%clk 0:02:35]} 14. f3 {[%clk 0:02:10]}  h6 {[%clk 0:02:09]} 15. fxe4 {[%clk 0:02:10]}  N5b6 {[%clk 0:02:08]} 16. Qb3 {[%clk 0:01:56]}  Kh8 {[%clk 0:01:57]} 17. Ne6 {[%clk 0:01:37]}  Rxe6 {[%clk 0:01:53]} 18. Nxb6 {[%clk 0:01:38]}  Nxb6 {[%clk 0:01:53]} 19. Bf4 {[%clk 0:01:26]}  Qe7 {[%clk 0:01:50]} 20. e5 {[%clk 0:01:18]}  Qe8 {[%clk 0:01:50]} 21. h4 {[%clk 0:01:14]}  Re7 {[%clk 0:01:47]} 22. c4 {[%clk 0:01:06]}  Be6 {[%clk 0:01:44]} 23. d5 {[%clk 0:01:06]}  cxd5 {[%clk 0:01:36]} 24. cxd5 {[%clk 0:01:06]}  Bg8 {[%clk 0:01:23]} 25. e6 {[%clk 0:01:03]}  Rd8 {[%clk 0:01:23]} 26. Rad1 {[%clk 0:00:52]}  Qa4 {[%clk 0:01:15]} 27. Qe3 {[%clk 0:00:43]}  Nc4 {[%clk 0:01:01]} 28. Qc5 {[%clk 0:00:27]}  Rxe6 {[%clk 0:00:16]} 29. b3 {[%clk 0:00:27]}  Rxe1+ {[%clk 0:00:16]} 30. Rxe1 {[%clk 0:00:27]}  Qa5 {[%clk 0:00:16]} 31. Qe7 {[%clk 0:00:11]}  Nd6 {[%clk 0:00:12]} 32. Bxd6 {[%clk 0:00:10]}  Rxd6 {[%clk 0:00:12]} 33. Qxd6 {[%clk 0:00:06]}  Qxe1+ {[%clk 0:00:12]} 34. Kh2 {[%clk 0:00:07]}  Bd4 {[%clk 0:00:11]} 35. Qxg6 {[%clk 0:00:07]}  Bg7 {[%clk 0:00:09]} 36. Qxf5 {[%clk 0:00:06]}  Qe5 {[%clk 0:00:09]} 37. Qf3 {[%clk 0:00:05]}  Qd6 {[%clk 0:00:08]} 38. Qe4 {[%clk 0:00:04]}  Be5 {[%clk 0:00:08]} 39. Kh3 {[%clk 0:00:04]}  Bf7 {[%clk 0:00:06]} 40. Qg4 {[%clk 0:00:03]}  Qg6 {[%clk 0:00:05]} 41. Qxg6 {[%clk 0:00:03]}  Bxg6 {[%clk 0:00:05]} 42. g4 {[%clk 0:00:04]}  Kg7 {[%clk 0:00:05]} 43. Bf3 {[%clk 0:00:04]}  Kf6 {[%clk 0:00:05]} 44. Kg2 {[%clk 0:00:04]}  Bb1 {[%clk 0:00:06]} 45. a4 {[%clk 0:00:04]}  Bc2 {[%clk 0:00:05]} 46. d6 {[%clk 0:00:03]}  Bxd6 {[%clk 0:00:05]} 47. Bxb7 {[%clk 0:00:03]}  Bxb3 {[%clk 0:00:06]} 48. Bc6 {[%clk 0:00:03]}  a5 {[%clk 0:00:05]} 49. Kf3 {[%clk 0:00:03]}  Bd1+ {[%clk 0:00:05]} 50. Ke3 {[%clk 0:00:02]}  Bxg4 {[%clk 0:00:05]} 51. Kd4 {[%clk 0:00:03]}  Bb4 {[%clk 0:00:06]} 52. Kc4 {[%clk 0:00:00]}  Be1 {[%clk 0:00:06]} 0-1

[Event "November 21 Early 2023"]
[Site "https://www.chess.com"]
[Date "2023.11.21"]
[Round "6"]
[White "Goryachkina, Aleksandra"]
[Black "UNSTOPPABLE_LEGEND"]
[Result "1-0"]
[Board "101"]
[TimeControl "180+1"]
[WhiteFideId "4147103"]
[WhiteElo "2475"]
[BlackElo "2500"]
[WhiteTeam "FID"]
[WhiteClock "0:00:08"]
[BlackClock "0:00:00"]

1. e4 {[%clk 0:02:59]}  Nc6 {[%clk 0:02:59]} 2. d4 {[%clk 0:02:59]}  e5 {[%clk 0:02:59]} 3. Nf3 {[%clk 0:02:55]}  exd4 {[%clk 0:02:59]} 4. Nxd4 {[%clk 0:02:56]}  Nf6 {[%clk 0:03:00]} 5. Nxc6 {[%clk 0:02:55]}  bxc6 {[%clk 0:03:01]} 6. Nc3 {[%clk 0:02:54]}  d5 {[%clk 0:02:58]} 7. exd5 {[%clk 0:02:53]}  cxd5 {[%clk 0:02:59]} 8. Bb5+ {[%clk 0:02:52]}  Bd7 {[%clk 0:02:59]} 9. O-O {[%clk 0:02:46]}  Be7 {[%clk 0:02:55]} 10. Re1 {[%clk 0:02:42]}  c6 {[%clk 0:01:53]} 11. Bd3 {[%clk 0:02:39]}  O-O {[%clk 0:01:52]} 12. Bg5 {[%clk 0:02:33]}  h6 {[%clk 0:01:51]} 13. Bh4 {[%clk 0:02:32]}  Rb8 {[%clk 0:01:50]} 14. Rb1 {[%clk 0:02:14]}  Rb4 {[%clk 0:01:48]} 15. Bg3 {[%clk 0:02:11]}  Re8 {[%clk 0:01:27]} 16. h3 {[%clk 0:02:09]}  Bf8 {[%clk 0:01:11]} 17. a3 {[%clk 0:02:03]}  Rb7 {[%clk 0:01:05]} 18. Bh4 {[%clk 0:01:41]}  Rxe1+ {[%clk 0:00:37]} 19. Qxe1 {[%clk 0:01:40]}  Bd6 {[%clk 0:00:38]} 20. Qe2 {[%clk 0:01:33]}  a5 {[%clk 0:00:28]} 21. Qf3 {[%clk 0:01:12]}  Be6 {[%clk 0:00:07]} 22. Ne2 {[%clk 0:00:57]}  Bxa3 {[%clk 0:00:04]} 23. Nd4 {[%clk 0:00:56]}  Bxb2 {[%clk 0:00:03]} 24. Nxc6 {[%clk 0:00:26]}  Qd6 {[%clk 0:00:03]} 25. Nxa5 {[%clk 0:00:22]}  Rb8 {[%clk 0:00:02]} 26. Nb3 {[%clk 0:00:16]}  Bc3 {[%clk 0:00:02]} 27. Rd1 {[%clk 0:00:13]}  Be5 {[%clk 0:00:02]} 28. Re1 {[%clk 0:00:13]}  g5 {[%clk 0:00:02]} 29. Bg3 {[%clk 0:00:13]}  Bxg3 {[%clk 0:00:02]} 30. fxg3 {[%clk 0:00:13]}  Kg7 {[%clk 0:00:02]} 31. Rf1 {[%clk 0:00:13]}  Nd7 {[%clk 0:00:03]} 32. Kh1 {[%clk 0:00:10]}  Qe5 {[%clk 0:00:03]} 33. Qf2 {[%clk 0:00:10]}  Qc3 {[%clk 0:00:03]} 34. Nd4 {[%clk 0:00:08]}  Qc7 {[%clk 0:00:00]} 35. Nxe6+ {[%clk 0:00:08]} 1-0

[Event "November 21 Early 2023"]
[Site "https://www.chess.com"]
[Date "2023.11.21"]
[Round "6"]
[White "Shishkov, Andrei"]
[Black "Papasimakopoulos, Alexandros"]
[Result "1-0"]
[Board "103"]
[TimeControl "180+1"]
[WhiteFideId "4500563"]
[BlackFideId "4244125"]
[WhiteElo "2241"]
[BlackElo "2346"]
[WhiteTeam "EST"]
[BlackTeam "GRE"]
[WhiteClock "0:00:19"]
[BlackClock "0:01:09"]

1. d4 {[%clk 0:03:00]}  e6 {[%clk 0:02:56]} 2. c4 {[%clk 0:03:01]}  Nf6 {[%clk 0:02:55]} 3. Nc3 {[%clk 0:03:01]}  Bb4 {[%clk 0:02:56]} 4. Qc2 {[%clk 0:03:01]}  c5 {[%clk 0:02:56]} 5. dxc5 {[%clk 0:03:01]}  Bxc5 {[%clk 0:02:57]} 6. Nf3 {[%clk 0:02:58]}  Qb6 {[%clk 0:02:57]} 7. e3 {[%clk 0:02:58]}  Be7 {[%clk 0:02:57]} 8. b3 {[%clk 0:02:49]}  a6 {[%clk 0:02:57]} 9. Bb2 {[%clk 0:02:49]}  d6 {[%clk 0:02:57]} 10. Be2 {[%clk 0:02:42]}  Nbd7 {[%clk 0:02:57]} 11. g4 {[%clk 0:02:38]}  h6 {[%clk 0:02:56]} 12. Rg1 {[%clk 0:02:21]}  Qc7 {[%clk 0:02:45]} 13. h4 {[%clk 0:02:18]}  b6 {[%clk 0:02:44]} 14. g5 {[%clk 0:02:18]}  hxg5 {[%clk 0:02:43]} 15. hxg5 {[%clk 0:02:19]}  Nh5 {[%clk 0:02:41]} 16. g6 {[%clk 0:02:09]}  f5 {[%clk 0:02:40]} 17. Nd4 {[%clk 0:02:07]}  Ndf6 {[%clk 0:02:36]} 18. Bf3 {[%clk 0:02:02]}  Rb8 {[%clk 0:02:31]} 19. O-O-O {[%clk 0:01:45]}  Bd7 {[%clk 0:02:31]} 20. Nce2 {[%clk 0:01:33]}  Rh6 {[%clk 0:02:20]} 21. Rh1 {[%clk 0:01:30]}  Qc8 {[%clk 0:02:15]} 22. Nf4 {[%clk 0:01:19]}  Nxf4 {[%clk 0:02:10]} 23. Rxh6 {[%clk 0:01:17]}  gxh6 {[%clk 0:02:11]} 24. exf4 {[%clk 0:01:16]}  Ng8 {[%clk 0:01:58]} 25. Re1 {[%clk 0:01:13]}  b5 {[%clk 0:01:51]} 26. cxb5 {[%clk 0:01:05]}  axb5 {[%clk 0:01:51]} 27. Qxc8+ {[%clk 0:00:59]}  Rxc8+ {[%clk 0:01:51]} 28. Kb1 {[%clk 0:00:59]}  e5 {[%clk 0:01:29]} 29. fxe5 {[%clk 0:00:58]}  dxe5 {[%clk 0:01:30]} 30. Rxe5 {[%clk 0:00:55]}  Kf8 {[%clk 0:01:31]} 31. Nxf5 {[%clk 0:00:47]}  Bf6 {[%clk 0:01:30]} 32. g7+ {[%clk 0:00:39]}  Bxg7 {[%clk 0:01:23]} 33. Nxg7 {[%clk 0:00:38]}  Kxg7 {[%clk 0:01:14]} 34. Re7+ {[%clk 0:00:36]}  Kg6 {[%clk 0:01:14]} 35. Rxd7 {[%clk 0:00:36]}  Rf8 {[%clk 0:01:14]} 36. Be4+ {[%clk 0:00:36]}  Kg5 {[%clk 0:01:14]} 37. f3 {[%clk 0:00:29]}  h5 {[%clk 0:01:11]} 38. Rd5+ {[%clk 0:00:29]}  Kh4 {[%clk 0:01:10]} 39. Rxb5 {[%clk 0:00:28]}  Nf6 {[%clk 0:01:09]} 40. Bxf6+ {[%clk 0:00:27]}  Rxf6 {[%clk 0:01:10]} 41. a4 {[%clk 0:00:27]}  Rh6 {[%clk 0:01:11]} 42. a5 {[%clk 0:00:25]}  Kg3 {[%clk 0:01:11]} 43. Rb6 {[%clk 0:00:24]}  Rh7 {[%clk 0:01:11]} 44. a6 {[%clk 0:00:24]}  Ra7 {[%clk 0:01:10]} 45. Bb7 {[%clk 0:00:22]}  h4 {[%clk 0:01:09]} 46. b4 {[%clk 0:00:21]}  h3 {[%clk 0:01:10]} 47. Rh6 {[%clk 0:00:21]}  h2 {[%clk 0:01:10]} 48. b5 {[%clk 0:00:21]}  Kg2 {[%clk 0:01:10]} 49. b6 {[%clk 0:00:20]}  Rxa6 {[%clk 0:01:10]} 50. Bxa6 {[%clk 0:00:20]}  Kxf3 {[%clk 0:01:09]} 51. Rxh2 {[%clk 0:00:19]} 1-0

[Event "November 21 Early 2023"]
[Site "https://www.chess.com"]
[Date "2023.11.21"]
[Round "6"]
[White "Khromkin, Andrey"]
[Black "Manukyan, Sargis A."]
[Result "0-1"]
[Board "104"]
[TimeControl "180+1"]
[WhiteFideId "4154126"]
[BlackFideId "13303970"]
[WhiteElo "2458"]
[BlackElo "2204"]
[WhiteTeam "RUS"]
[BlackTeam "ARM"]
[WhiteClock "0:00:44"]
[BlackClock "0:02:04"]

1. d4 {[%clk 0:02:59]}  d6 {[%clk 0:03:00]} 2. c4 {[%clk 0:02:58]}  Nf6 {[%clk 0:03:00]} 3. Nf3 {[%clk 0:02:59]}  g6 {[%clk 0:03:00]} 4. Nc3 {[%clk 0:02:59]}  Bg7 {[%clk 0:03:00]} 5. g3 {[%clk 0:02:59]}  O-O {[%clk 0:03:01]} 6. Bg2 {[%clk 0:02:59]}  Nc6 {[%clk 0:03:02]} 7. O-O {[%clk 0:03:00]}  a6 {[%clk 0:03:02]} 8. h3 {[%clk 0:02:59]}  Rb8 {[%clk 0:03:01]} 9. e4 {[%clk 0:03:00]}  b5 {[%clk 0:03:01]} 10. e5 {[%clk 0:02:59]}  Nd7 {[%clk 0:03:01]} 11. cxb5 {[%clk 0:02:58]}  axb5 {[%clk 0:03:00]} 12. Ng5 {[%clk 0:02:54]}  Bb7 {[%clk 0:02:50]} 13. e6 {[%clk 0:02:52]}  f6 {[%clk 0:02:48]} 14. exd7 {[%clk 0:02:47]}  fxg5 {[%clk 0:02:48]} 15. Bxg5 {[%clk 0:02:25]}  Nxd4 {[%clk 0:02:48]} 16. Nd5 {[%clk 0:02:22]}  Qxd7 {[%clk 0:02:45]} 17. Bxe7 {[%clk 0:01:53]}  Rf5 {[%clk 0:02:35]} 18. Bf6 {[%clk 0:01:39]}  Bxd5 {[%clk 0:02:27]} 19. Bxd4 {[%clk 0:01:36]}  Bxg2 {[%clk 0:02:24]} 20. Kxg2 {[%clk 0:01:37]}  Qc6+ {[%clk 0:02:23]} 21. Kh2 {[%clk 0:01:21]}  Rd5 {[%clk 0:02:23]} 22. Rc1 {[%clk 0:01:19]}  Qb7 {[%clk 0:02:13]} 23. Qg4 {[%clk 0:00:56]}  Rxd4 {[%clk 0:02:08]} 24. Qe6+ {[%clk 0:00:55]}  Kh8 {[%clk 0:02:08]} 25. Qd7 {[%clk 0:00:50]}  c5 {[%clk 0:02:06]} 26. Qe6 {[%clk 0:00:44]}  Qe4 {[%clk 0:02:04]} 0-1

[Event "November 21 Early 2023"]
[Site "https://www.chess.com"]
[Date "2023.11.21"]
[Round "6"]
[White "Weisz, Bryan"]
[Black "GatoRojo150"]
[Result "1-0"]
[Board "106"]
[TimeControl "180+1"]
[WhiteFideId "30934133"]
[WhiteElo "2444"]
[BlackElo "2579"]
[WhiteTeam "USA"]
[WhiteClock "0:01:10"]
[BlackClock "0:00:00"]

1. e4 {[%clk 0:03:00]}  e5 {[%clk 0:02:59]} 2. Bc4 {[%clk 0:02:59]}  Nf6 {[%clk 0:02:58]} 3. Nc3 {[%clk 0:02:59]}  Nxe4 {[%clk 0:02:58]} 4. Qh5 {[%clk 0:03:00]}  Nd6 {[%clk 0:02:57]} 5. Bb3 {[%clk 0:02:59]}  Nc6 {[%clk 0:02:58]} 6. Nb5 {[%clk 0:02:59]}  g6 {[%clk 0:02:58]} 7. Qf3 {[%clk 0:02:59]}  f5 {[%clk 0:02:57]} 8. Qd5 {[%clk 0:02:59]}  Qf6 {[%clk 0:02:57]} 9. Nxc7+ {[%clk 0:02:59]}  Kd8 {[%clk 0:02:57]} 10. Nxa8 {[%clk 0:02:59]}  b6 {[%clk 0:02:57]} 11. Nf3 {[%clk 0:02:53]}  Bb7 {[%clk 0:02:47]} 12. d4 {[%clk 0:02:53]}  Nxd4 {[%clk 0:00:38]} 13. Qxd4 {[%clk 0:02:52]}  Bxf3 {[%clk 0:00:28]} 14. Qa4 {[%clk 0:02:52]}  Bxa8 {[%clk 0:00:20]} 15. Qxa7 {[%clk 0:02:51]}  Bxg2 {[%clk 0:00:19]} 16. Rg1 {[%clk 0:02:52]}  Nc8 {[%clk 0:00:12]} 17. Qb8 {[%clk 0:02:43]}  Qc6 {[%clk 0:00:12]} 18. Qxe5 {[%clk 0:02:22]}  Qe4+ {[%clk 0:00:08]} 19. Qxe4 {[%clk 0:02:18]}  Bxe4 {[%clk 0:00:09]} 20. Bg5+ {[%clk 0:02:15]}  Kc7 {[%clk 0:00:09]} 21. Bf6 {[%clk 0:02:13]}  Bb4+ {[%clk 0:00:08]} 22. c3 {[%clk 0:02:14]}  Rf8 {[%clk 0:00:08]} 23. Bg7 {[%clk 0:02:07]}  Bc5 {[%clk 0:00:09]} 24. Bxf8 {[%clk 0:02:06]}  Bxf8 {[%clk 0:00:09]} 25. O-O-O {[%clk 0:02:01]}  Bc5 {[%clk 0:00:09]} 26. Bc2 {[%clk 0:01:49]}  Bxf2 {[%clk 0:00:08]} 27. Rgf1 {[%clk 0:01:44]}  Be3+ {[%clk 0:00:07]} 28. Kb1 {[%clk 0:01:45]}  Nd6 {[%clk 0:00:06]} 29. Bxe4 {[%clk 0:01:34]}  Nxe4 {[%clk 0:00:07]} 30. Kc2 {[%clk 0:01:29]}  Bc5 {[%clk 0:00:07]} 31. b4 {[%clk 0:01:27]}  Bd6 {[%clk 0:00:07]} 32. a4 {[%clk 0:01:27]}  Bxh2 {[%clk 0:00:07]} 33. Rh1 {[%clk 0:01:22]}  Be5 {[%clk 0:00:03]} 34. Rxh7 {[%clk 0:01:22]}  Bxc3 {[%clk 0:00:04]} 35. Rdxd7+ {[%clk 0:01:19]}  Kc6 {[%clk 0:00:00]} 36. Kb3 {[%clk 0:01:10]} 1-0